Cogmind - Beta 15 @@@ ROGUE MODE // 2025.08.06 @ 21:22:31 Player: Endlessblaze Result: Smashed by cave-in Performance ------------- Evolutions (0) 0 Regions Visited (3) 600 Robots Destroyed (7) 35 Value Destroyed (106) 106 Prototype IDs (0) 0 Alien Tech Used (0) 0 Bonus (149) 149 TOTAL SCORE: 890 Bonus ------- Follower Combat Kills 149 Cogmind --------- Core Integrity 0/250 Matter 268/300 Energy 45/100 System Corruption 0% Temperature Cool (0) Movement Rolling (200) Ox8 Location -10/Exiles Parts ------- > --- POWER (1) -------- (None) > --- PROPULSION (2) --- Aluminum Leg Wheel > --- UTILITY (2) ------ Huge Storage Unit > --- WEAPON (2) ------- Assault Rifle Mining Laser > --- INVENTORY (25) --- Medium Battery (150) Recalibrator Peak State ------------ > --- POWER ------------ Light Ion Engine > --- PROPULSION ------- Aluminum Leg Aluminum Leg > --- UTILITY ---------- Medium Battery Seismic Detector > --- WEAPON ----------- Small Laser Assault Rifle > --- INVENTORY -------- EM Pulse Gun EM Pulse Gun Grenade Launcher Mining Laser Welding Torch [Rating: 7] Favorites ----------- Power Light Ion Engine Engine Light Ion Engine Propulsion Aluminum Leg Leg Aluminum Leg Wheel Wheel Utility Seismic Detector Device Seismic Detector Storage Medium Battery Weapon Assault Rifle Energy Gun Small Laser Ballistic Gun Assault Rifle Launcher Grenade Launcher Special Weapon Mining Laser Build | -11 -10 -10 -10 ------- Run | Yrd Mat Min Exi Slots Evolved . | . . . . Power . | . . . . Propulsion . | . . . . Utility . | . . . . Weapon . | . . . . Parts Attached 16 | 5 2 8 1 Power 1 | 1 . . . Engine 1 | 1 . . . Core . | . . . . Reactor . | . . . . Propulsion 4 | 2 . 2 . Treads . | . . . . Leg 3 | 2 . 1 . Wheel 1 | . . 1 . Hover . | . . . . Flight . | . . . . Utility 4 | . 2 2 . Device 2 | . 1 1 . Storage 2 | . 1 1 . Processor . | . . . . Hackware . | . . . . Protection . | . . . . Artifact . | . . . . Weapon 7 | 2 . 4 1 Energy Gun 3 | 1 . 2 . Energy Cannon . | . . . . Ballistic Gun 1 | 1 . . . Ballistic Cannon . | . . . . Launcher 1 | . . 1 . Special Weapon 2 | . . 1 1 Impact Weapon . | . . . . Slashing Weapon . | . . . . Piercing Weapon . | . . . . Special Melee Weapon . | . . . . Unidentified Prototypes . | . . . . Parts Lost 9 | . . 9 . Power 1 | . . 1 . Propulsion 2 | . . 2 . Utility 2 | . . 2 . Weapon 4 | . . 4 . Highest Loss Streak 5 | . . 5 . To Critical Strikes . | . . . . Average Backups 4 | . 3 4 2 Power . | . . . . Propulsion . | . . . . Utility . | . . 1 2 Weapon 2 | . 2 3 . Tool/Special . | . . . . Unused Backups 1 | . . . 1 Power . | . . . . Propulsion . | . . . . Utility 1 | . . . 1 Weapon . | . . . . Tool/Special . | . . . . Average Slot Usage (%) 83 | . 78 89 71 Engine 11 | . 14 12 . Leg 24 | . 28 24 14 Wheel 2 | . . . 14 Device 6 | . 2 10 . Storage 11 | . 4 14 14 Energy Gun 13 | . 14 16 . Ballistic Gun 9 | . 14 5 14 Special Weapon 2 | . . 1 14 Peak Build Rating 7 | 5 7 7 5 Average Rating 5 | 3 5 6 5 On Entrance 4 | . 5 7 4 Naked Turns . | . . . . Heaviest Build 88 | 6 9 88 83 Greatest Support 20 | 20 20 20 10 Greatest Overweight (x) 27 | . . 27 8 Average Overweight (x) . | . . 1 8 Largest Inventory Capacity 25 | 5 5 25 25 Average Capacity 11 | 5 5 12 25 Most Carried 6 | . 5 6 2 Average Carried 4 | . 3 4 2 Final Capacity 25 | 5 5 25 25 Final Carried 5 | . 5 3 2 Class Distribution -------------------- 100% | Mutant Dominant Class ---------------- Mutant | -10/Materials Mutant | -10/Mines Mutant | -10/Exiles Resources | -11 -10 -10 -10 ----------- Run | Yrd Mat Min Exi Matter Collected 464 | 199 . 265 . Remotely 65 | . . 65 . Salvage Created 268 | . . 268 . Parts 10 | . . 10 . Haulers Intercepted . | . . . . Recyclers Shooed . | . . . . Parts Field Recycled . | . . . . Retrieved Matter . | . . . . Parts Self-Destructed . | . . . . Prevented . | . . . . Kills | -11 -10 -10 -10 ------- Run | Yrd Mat Min Exi Combat Hostiles Destroyed 16 | . . 16 . Guns 7 | . . 7 . AOE 9 | . . 9 . Classes Destroyed 5 | . . 5 . Recycler 1 | . . 1 . Mechanic 1 | . . 1 . Swarmer 4 | . . 4 . Grunt 1 | . . 1 . Assembled 11 | . . 11 . Best Kill Streak 9 | . . 9 . Combat Bots Only 8 | . . 8 . Max Kills in Single Turn 2 | . . 2 . Gunslinging . | . . . . Exploded 2 | . . 2 . Melee . | . . . . Uniques/NPCs Destroyed . | . . . . Combat | -11 -10 -10 -10 -------- Run | Yrd Mat Min Exi Hostile Shots Fired 74 | . . 74 . Missed 16 | . . 16 . Hits 58 | . . 58 . Projectile 58 | . . 58 . Critical Strikes 1 | . . 1 . Part Disruptions 3 | . . 3 . Damage Taken 944 | . . 896 48 Core 267 | . . 219 48 Absorbed by Shields . | . . . . Core Remaining (%) 100 | 100 . . . Volleys Fired 61 | . . 39 22 Largest 2 | . . 2 1 Hottest 100 | . . 80 100 Shots Fired 79 | . . 57 22 Gun 46 | . . 42 4 Cannon . | . . . . Launcher 11 | . . 11 . Special 22 | . . 4 18 Kinetic 11 | . . 7 4 Thermal 26 | . . 8 18 Explosive 11 | . . 11 . Electromagnetic 31 | . . 31 . Robot Hit Streak 7 | . . 7 . Robot Miss Streak 4 | . . 4 . Penetration Max . | . . . . Secondary Targets . | . . . . Shots Hit Robots 34 | . . 34 . Core Hits 27 | . . 27 . Critical Kills . | . . . . Critical Parts Destroyed . | . . . . Critical Strikes . | . . . . Melee Attacks . | . . . . Impact . | . . . . Slashing . | . . . . Piercing . | . . . . Sneak Attacks . | . . . . Combat Hostiles . | . . . . Follow-up Attacks . | . . . . Damage Inflicted 953 | . 8 945 . Guns 309 | . . 309 . Cannons . | . . . . Explosions 630 | . . 630 . Melee . | . . . . Ramming 8 | . 8 . . Kinetic 49 | . . 49 . Thermal 153 | . . 153 . Explosive 526 | . . 526 . Electromagnetic 217 | . . 217 . Impact . | . . . . Slashing . | . . . . Piercing . | . . . . Highest Corruption . | . . . . Average Corruption . | . . . . Corruption Purged . | . . . . Corruption Blocked . | . . . . Overload Shots . | . . . . Overflow Damage 45 | . . 45 . Projectiles . | . . . . Explosions 45 | . . 45 . Melee . | . . . . Knockbacks . | . . . . Impact . | . . . . Kinetic . | . . . . Secondary . | . . . . Self-Inflicted Damage 165 | . . 165 . Shots 6 | . . 6 . Rammed . | . . . . Targets Rammed 2 | . 2 . . Kicked 2 | . 2 . . Crushed . | . . . . Highest Temperature 72 | . . 72 . Average Temperature 27 | . . 27 . Received Heat Transfer 155 | . . 155 . Siege Activations . | . . . . Martial Activations . | . . . . Shielding Activations . | . . . . Robots Disrupted . | . . . . Combat Hostiles . | . . . . Robots Corrupted . | . . . . Combat Hostiles . | . . . . Parts Fried 1 | . . 1 . Impact Corruptions . | . . . . Robots Melted . | . . . . Combat Hostiles . | . . . . Parts Melted . | . . . . Heat Transferred 250 | . . 250 . Parts Sabotaged . | . . . . Parts Stolen . | . . . . Parts Stripped . | . . . . Power Chain Reactions 1 | . . 1 . Alert | -11 -10 -10 -10 ------- Run | Yrd Mat Min Exi Maximum Alert Level . | . . . . Low Security (%) 100 | 100 100 100 . Level 1 . | . . . . Level 2 . | . . . . Level 3 . | . . . . Level 4 . | . . . . Level 5 . | . . . . High Security . | . . . . Max Security . | . . . . Peak Influence 84 | . 14 84 . Initial . | . . . . Average 15 | . . 23 . Influence Increases 417 | . 14 403 . Destroy 0b10 Robot/C 240 | . . 240 . Destroy 0b10 Robot/NC 10 | . . 10 . Destroy Leader 40 | . . 40 . Allied During Kill 40 | . . 40 . Successful Hack 14 | . 14 . . Destroy Structure 58 | . . 58 . Lose Combat Pursuer 15 | . . 15 . Influence Decreases 417 | . 14 403 . Time Decay 323 | . 14 309 . Lost Part 54 | . . 54 . Lost Ally 40 | . . 40 . Squads Dispatched 1 | . . 1 . Investigation . | . . . . Extermination . | . . . . Reinforcement . | . . . . Assault 1 | . . 1 . Garrison . | . . . . Intercept . | . . . . Searches Triggered . | . . . . Construction Impeded . | . . . . Haulers Reinforced . | . . . . Active Scanning Responses . | . . . . Cargo Convoy Interrupts . | . . . . Stealth | -11 -10 -10 -10 --------- Run | Yrd Mat Min Exi Distress Signals . | . . . . Communications Jammed . | . . . . Distress Signals . | . . . . Times Spotted 26 | . 3 23 . Peak Tracking Total 4 | . 2 4 . Tactical Retreats 1 | . . 1 . Traps | -11 -10 -10 -10 ------- Run | Yrd Mat Min Exi Traps Triggered . | . . . . Indirectly . | . . . . Trap Hack Attempts . | . . . . Triggered . | . . . . Disarmed . | . . . . Reprogrammed . | . . . . Reused . | . . . . Traps Extracted . | . . . . Installed . | . . . . Triggered . | . . . . Machines | -11 -10 -10 -10 ---------- Run | Yrd Mat Min Exi Machines Disabled 1 | . . . 1 Max in Single Turn 1 | . . . 1 Machines Repaired . | . . . . Machines Dismantled . | . . . . Machines Sabotaged . | . . . . Overloaded Fab Kills . | . . . . Hacking | -11 -10 -10 -10 --------- Run | Yrd Mat Min Exi Machines Accessed 4 | . 4 . . Terminals 4 | . 4 . . Fabricators . | . . . . Repair Stations . | . . . . Recycling Units . | . . . . Scanalyzers . | . . . . Garrison Access . | . . . . Total Hacks 12 | . 12 . . Successful 5 | . 5 . . Failed 7 | . 7 . . Catastrophic 3 | . 3 . . Database Lockouts . | . . . . Manual 5 | . 5 . . Terminals 12 | . 12 . . Fabricators . | . . . . Repair Stations . | . . . . Recycling Units . | . . . . Scanalyzers . | . . . . Garrison Access . | . . . . Terminal Hacks 3 | . 3 . . Alert Level 1 | . 1 . . Locate Traps 1 | . 1 . . Dispatch Records 1 | . 1 . . Fabricator Hacks . | . . . . Repair Station Hacks . | . . . . Recycling Unit Hacks . | . . . . Scanalyzer . | . . . . Garrison Access Hacks . | . . . . Unauthorized Hacks 2 | . 2 . . Terminals 2 | . 2 . . Botnet 2 | . 2 . . Fabricators . | . . . . Repair Stations . | . . . . Recycling Units . | . . . . Scanalyzers . | . . . . Garrison Access . | . . . . Data Cores Recovered . | . . . . Used . | . . . . Hacking Detections 4 | . 4 . . Full Trace Events 2 | . 2 . . Feedback Events . | . . . . Feedback Blocked . | . . . . Robot Schematics Acquired . | . . . . Robots Built . | . . . . Authchips . | . . . . Time . | . . . . Total Robot Build Rating . | . . . . Part Schematics Acquired . | . . . . Parts Built . | . . . . Authchips . | . . . . Time . | . . . . Total Part Build Rating . | . . . . Parts Repaired . | . . . . Time . | . . . . Parts Recycled . | . . . . Recycled Matter . | . . . . Retrieved Matter . | . . . . Retrieved Components . | . . . . Parts Scanalyzed . | . . . . Part Schematics Acquired . | . . . . Parts Damaged . | . . . . Bothacking | -11 -10 -10 -10 ------------ Run | Yrd Mat Min Exi Used RIF Installer . | . . . . Robots Hacked . | . . . . Non-combat . | . . . . Combat . | . . . . Robot Hacks Applied . | . . . . Relay Couplers Released . | . . . . Fabnet Peak Effective % . | . . . . Robots Rewired . | . . . . Allies Hacked . | . . . . Hacks Repelled . | . . . . Allies | -11 -10 -10 -10 -------- Run | Yrd Mat Min Exi Total Allies 4 | . . 4 . Largest Group 4 | . . 4 . Highest-Rated Group 71 | . . 71 . Highest-Rated Ally 31 | . . 31 . Total Orders 3 | . . 3 . GUARD 3 | . . 3 . Ally Attacks 37 | . . 37 . Total Damage 406 | . . 406 . Kills 8 | . . 8 . Allies Corrupted . | . . . . Allies Melted . | . . . . Intel | -11 -10 -10 -10 ------- Run | Yrd Mat Min Exi Active Infowar (turns) 892 | . 101 791 . Seismic 892 | . 101 791 . Robot Analysis Total . | . . . . Derelict Logs Recovered 1 | . . 1 . Drone Launches . | . . . . Drone Recoveries . | . . . . Exploration | -11 -10 -10 -10 ------------- Run | Yrd Mat Min Exi Turns Passed 1969 | 49 558 1114 248 Spaces Moved 1081 | 48 457 519 57 Core 27 | 22 . 5 . Treads . | . . . . Legs 974 | 26 457 491 . Wheels 80 | . . 23 57 Hover . | . . . . Flight . | . . . . Fastest Speed 50 | 50 120 120 200 Average Speed 146 | 87 120 169 200 Slowest Speed 1400 | 120 120 1400 200 Overloaded Moves . | . . . . Propulsion Burnouts . | . . . . Robots Hopped . | . . . . Potential Cave-ins . | . . . . Cave-ins Triggered 1 | . . . 1 Exploration Rate (%) 32 | 4 54 63 8 Regions Visited 3 Branch Regions 2 Pre-discovered Areas . | . . . . Known Exits Taken . | . . . . Unknown Exits Taken 3 | 1 1 1 . Scrap Searched 1 | . . 1 . Spaces Dug 32 | . . 20 12 Terrain Destroyed 110 | . . 95 15 Melee . | . . . . Projectile 15 | . . . 15 AOE 95 | . . 95 . Terrain Rammed . | . . . . Walls Destroyed . | . . . . Machines Disabled . | . . . . Actions | -11 -10 -10 -10 --------- Run | Yrd Mat Min Exi Total 1347 | 52 465 693 137 Wait 178 | . . 121 57 Move 1078 | 47 456 518 57 Hop . | . . . . Pick Up 7 | . 5 2 . Fast Attach 10 | 5 2 3 . Attach 5 | . . 4 1 Detach 1 | . . 1 . Swap 4 | . . 4 . Drop 1 | . . 1 . Fire 61 | . . 39 22 Melee . | . . . . Ram . | . . . . Kick 2 | . 2 . . Crush . | . . . . Escape Stasis . | . . . . Rewire . | . . . . Trap . | . . . . Miscellaneous . | . . . . Route ------- -11/Scrapyard -10/Materials (discovered 2 exits: [*Mat] / [*Min]) -10/Mines (discovered 2 exits: [*Mat] / [*Exi]) -10/Exiles (discovered 1 exit: [*Min]) History --------- Turn | Location | Event 6 | -11/Scrapyard | Discovered new exit (range 16) 50 | -11/Scrapyard | Entered Materials 278 | -10/Materials | Discovered new exit (range 9) 317 | -10/Materials | Build established: Mutant 483 | -10/Materials | Discovered new exit (range 10) 608 | -10/Materials | Entered Mines 617 | -10/Mines | Assisted by bots powering up and referring to "LRC-V3" 641 | -10/Mines | Deemed a non-threat by the Exiles lab entrance 642 | -10/Mines | Discovered new exit (range 5) 837 | -10/Mines | Learned 2 Materials zone layouts 854 | -10/Mines | Met a Derelict testing a Signal Generator 1163 | -10/Mines | Assembled infested the area 1287 | -10/Mines | Discovered new exit (range 8) 1617 | -10/Mines | Destroyed 8 combat bots 1627 | -10/Mines | Lost 5 parts (1p2n2w) 1633 | -10/Mines | Core integrity fell below 50% 1678 | -10/Mines | Core integrity fell below 20% 1722 | -10/Mines | Entered Exiles 1837 | -10/Exiles | Discovered new exit (range 14) 1971 | -10/Exiles | Crushed by falling debris 1971 | -10/Exiles | Smashed by cave-in Last Messages --------------- U-05 Engineer lays Concrete. U-05 Engineer builds a Wall. K-01 Serf collects debris. Acquired 34 matter. U-05 Engineer lays Concrete. K-01 Serf collects debris. U-05 Engineer lays Concrete. Acquired Aluminum Leg. U-05 Engineer lays Concrete. K-01 Serf collects debris. U-05 Engineer builds a Wall. K-01 Serf destroyed. U-05 Engineer lays Concrete. LOCATION=UNKNOWN GOAL=ESCAPE Machine disabled. EXIT=FOUND The unstable cave ceiling collapses. Crushed by falling debris. [Achievement: Unlikely Earthworm] Map ----- +----------------------------------------------------+ | ?????????????????????????????????????????????????? | | ?????????????????????????????????????????????????? | | ?????????????????????????????????????????????????? | | ?????????????????????????????????????????????????? | | ?????????????????????????????????????????????????? | | ?????????????????????????????????????????????????? | | ?????????????????????????????????????????????????? | | ?????????????????????????????????????????????????? | | ?????????????????????????????????????????????????? | | ?????????????????????????????????????????????????? | | ?????????????????????????????????????????????????? | | ?????????????????????????????????????????????????? | | ?????????????????????????????????????????????????? | | ?????????????????????????????????###?????????????? | | ???????????????????????????????## #?????????????? | | ??????????????????????????????## #?????????????? | | ??????????????????????????????# < #?????????????? | | ??????????????????????????????# #?????????????? | | ??????????????????????????????# #?????????????? | | ???????????????????????????#### #??????????????? | | ??????????????????????????##"# ##?????????????? | | ??????????????????????????# " #?????????????? | | ??????????????????????????##" #?????????????? | | ??????????????????????####### #?????????????? | | ??????????????????????# ## # #?????????????? | | ???????????????????????# @; ###?????????????? | | ???????????????????????###; ##???????????????? | | ??????????????????????### #????????????????? | | ?????????????????""""## ##????????????????? | | ??????????????? * ##????????????????? | | ??????????????? * #????????????????? | | ??????????????? ##???????????????? | | ????????????????#### ###?????????????? | | ???????????????????#### * ###???????????? | | ??????????????????????##### ##??????????? | | ??????????????????????????### #??????????? | | ????????????????????????????### #??????????? | | ??????????????????????????????##; #??????????? | | ???????????????????????????????# ##?????????? | | ???????????????????????????????#""# ###???????? | | ???????????????????????????????#### ##??????? | | ??????????????????????????????????#" ###????? | | ??????????????????????????????????#### #????? | | ?????????????????????????????????????# ##????? | | ?????????????????????????????????????## ##?????? | | ??????????????????????????????????????#####??????? | | ?????????????????????????????????????????????????? | | ?????????????????????????????????????????????????? | | ?????????????????????????????????????????????????? | | ?????????????????????????????????????????????????? | +----------------------------------------------------+ Best States ------------- Heat Dissipation 25 Energy Generation 10 Energy Capacity 275 Matter Stores 300 Matter Capacity 300 Sight Range 16 Terrain Scan Density 10 Evasion (%) 55 Item Schematics ----------------- None Robot Schematics ------------------ None Fabricated ------------ Nothing Repaired ---------- Nothing Alien Tech Used ----------------- None Achievements -------------- Unlikely Earthworm Challenges ------------ None Game ------ Seed TerrabombGravjetMembrane Manual? 0 Play Time 00:20:05 Cumulative 14.1 hours Start 2025.08.06 @ 21:01:53 End 2025.08.06 @ 21:22:31 Sessions 1 Manual Loads 0 Difficulty Rogue Special Mode None Game No. 18 Rogue 18 Adventurer 0 Explorer 0 Win Type - Total 0 Types 0/0/0/0/0/0/0/0/0/0 Lore% 12 Gallery% 17 Achievement% 20 Wizard Run 0 Options --------- Layout 1 ASCII 0 Keyboard 0 Movement Arrows Keybinds 0 Fullscreen 1 Font 16/SmallcapsGlow Map View 55x38 Zoom Use 0% Tactical HUD 0 Map Filters NONE Filters NONE Steam 1 RUN: 6308b761-ce70-4a2b-afd6-690f4f31b860